bitfinex-derivatives/quotes_BTCF0:USTF0_20250716
["timestamp","ask_amount","ask_price","bid_price","bid_amount"]
[1752663502719,1.34406414,118830.0,118820.0,0.21749295]
[1752663502920,1.89116086,118830.0,118820.0,0.21749295]
[1752663504516,2.45351594,118830.0,118820.0,0.21749295]
[1752663510713,1.90641922,118830.0,118820.0,0.21749295]
[1752663511012,2.45351594,118830.0,118820.0,0.21749295]
[1752663514319,2.46860086,118830.0,118820.0,0.21749295]
[1752663518422,2.49870882,118830.0,118820.0,0.21749295]
[1752663520721,2.39346746,118830.0,118820.0,0.21749295]
[1752663520923,1.81602746,118830.0,118820.0,0.21749295]
[1752663521122,2.39342746,118830.0,118820.0,0.21749295]
[1752663522019,1.52379176,118830.0,118820.0,0.49344131]
[1752663522621,1.2502434,118830.0,118820.0,1.07084131]
[1752663522827,1.43061908,118830.0,118820.0,1.07084131]
[1752663523126,0.79627072,118830.0,118820.0,1.70848967]
[1752663523315,0.72116,118830.0,118820.0,1.70848967]
[1752663523718,0.79627072,118830.0,118820.0,1.70848967]
[1752663524116,0.29627072,118830.0,118820.0,1.70848967]
[1752663525921,0.22116,118830.0,118820.0,1.70848967]
[1752663526827,0.28121788,118830.0,118820.0,1.70848967]
[1752663528327,0.55474263,118830.0,118820.0,1.70848967]
[1752663528519,0.55474263,118830.0,118820.0,1.43494131]
[1752663529930,0.28119427,118830.0,118820.0,1.43494131]
[1752663530131,0.55474263,118830.0,118820.0,1.43494131]
[1752663530929,0.55474263,118830.0,118820.0,1.07414131]
[1752663531127,0.55474263,118830.0,118820.0,1.43494131]
[1752663531329,0.55474263,118830.0,118820.0,1.70848967]
[1752663533237,0.28119427,118830.0,118820.0,1.70848967]
[1752663536936,0.27884427,118830.0,118820.0,1.70848967]
[1752663537435,0.27403427,118830.0,118820.0,1.70848967]
[1752663538231,0.214,118830.0,118820.0,1.70848967]
[1752663538933,0.214,118830.0,118820.0,0.58399295]
[1752663539134,0.21887,118830.0,118820.0,1.16123295]
[1752663539336,0.21887,118830.0,118820.0,1.70832967]
[1752663539730,0.21887,118830.0,118820.0,1.7086778]
[1752663543038,0.23509362,118830.0,118820.0,1.7086778]
[1752663544436,0.23509362,118830.0,118820.0,1.1314378]
[1752663544637,0.23509362,118830.0,118820.0,1.7086378]
[1752663545136,0.23509362,118830.0,118820.0,1.16154108]
[1752663545331,0.23509362,118830.0,118820.0,1.7086378]
[1752663547038,0.23509362,118830.0,118820.0,1.1314378]
[1752663547241,0.23509362,118830.0,118820.0,1.7085978]
[1752663547741,0.23022362,118830.0,118820.0,1.7085978]
[1752663549029,0.23490362,118830.0,118820.0,1.7085978]
[1752663550241,0.23490362,118830.0,118820.0,1.1314378]
[1752663550433,0.23490362,118830.0,118820.0,1.7085978]
[1752663553237,0.23490362,118830.0,118820.0,1.16150108]
[1752663553540,0.23490362,118830.0,118820.0,1.7085578]
[1752663554537,0.23721362,118830.0,118820.0,0.58434108]
[1752663554741,0.51076198,118830.0,118820.0,1.43500944]
[1752663556441,0.51082791,118830.0,118820.0,1.43500944]
[1752663557939,0.51082791,118830.0,118820.0,1.07420944]
[1752663558146,0.57084021,118830.0,118820.0,1.07420944]
[1752663559033,0.93164021,118830.0,118820.0,1.07420944]
[1752663559944,0.87162791,118830.0,118820.0,1.07420944]
[1752663560144,0.51082791,118830.0,118820.0,0.85458944]
[1752663560443,0.51082791,118830.0,118820.0,1.43166944]
[1752663560745,0.51082791,118830.0,118820.0,1.43496944]
[1752663565247,0.51082791,118830.0,118820.0,1.43492944]
[1752663566949,0.23727955,118830.0,118820.0,1.7084778]
[1752663567350,0.23727955,118830.0,118820.0,1.7084378]
[1752663571154,0.23727955,118830.0,118820.0,1.1314378]
[1752663571359,0.23727955,118830.0,118820.0,1.7083978]
[1752663573849,0.23727955,118830.0,118820.0,1.70862844]
[1752663574254,0.23731955,118830.0,118820.0,1.70862844]
[1752663578167,0.29733185,118830.0,118820.0,1.70862844]
[1752663578470,0.23731955,118830.0,118820.0,1.16153172]
[1752663578666,0.23731955,118830.0,118820.0,1.70862844]
[1752663582574,0.23731955,118830.0,118820.0,1.16153172]
[1752663582872,0.23731955,118830.0,118820.0,1.70862844]
[1752663590974,0.59811955,118830.0,118820.0,0.80073172]
[1752663591179,0.87166791,118830.0,118820.0,0.79743172]
[1752663593981,0.87166791,118830.0,118820.0,1.07098008]
[1752663594181,0.59811955,118830.0,118820.0,0.79743172]
[1752663594574,0.87166791,118830.0,118820.0,0.79743172]
[1752663596279,0.87166791,118830.0,118820.0,0.21807172]
[1752663596472,0.87166791,118830.0,118820.0,0.80667172]
[1752663596675,1.37166791,118830.0,118820.0,0.80667172]
[1752663596876,1.37166791,118830.0,118820.0,0.21807172]
[1752663597172,1.37166791,118830.0,118820.0,0.80659172]
[1752663597682,1.37166791,118830.0,118820.0,0.80655172]
[1752663598285,1.87351377,118830.0,118820.0,0.21807172]
[1752663598476,1.87351377,118830.0,118820.0,0.80647172]
[1752663598678,1.59996541,118830.0,118820.0,0.80647172]
[1752663599184,1.87351377,118830.0,118820.0,0.80647172]
[1752663599483,1.81350147,118830.0,118820.0,0.80647172]
[1752663599881,1.26640475,118830.0,118820.0,0.80647172]
[1752663600183,1.88851685,118830.0,118820.0,0.21807172]
[1752663600787,1.34142013,118830.0,118820.0,0.14987085]
[1752663601083,1.88851685,118830.0,118820.0,0.14987085]
[1752663604880,1.34142013,118830.0,118820.0,0.14987085]
[1752663605086,1.88851685,118830.0,118820.0,0.14987085]
[1752663605487,1.81350147,118830.0,118820.0,0.14987085]
[1752663605686,1.53995311,118830.0,118820.0,0.14987085]
[1752663608281,1.52366356,118830.0,118820.0,0.14987085]
[1752663608682,1.62892672,118830.0,118820.0,0.0469678]
[1752663608890,1.08183,118830.0,118820.0,0.0469678]
[1752663609383,1.62892672,118830.0,118820.0,0.0469678]
[1752663610386,1.08183,118830.0,118820.0,0.0469678]
[1752663610688,1.62892672,118830.0,118820.0,0.0469678]
[1752663612382,1.7039421,118830.0,118820.0,0.0469678]
[1752663612887,1.15684538,118830.0,118820.0,0.0469678]
[1752663613089,1.7039421,118830.0,118820.0,0.0469678]
[1752663613993,1.8722541,118830.0,118820.0,0.0469678]
[1752663614195,2.02763374,118830.0,118820.0,0.0469678]
[1752663614587,2.22616672,118830.0,118820.0,0.0469678]
[1752663614787,1.08183,118830.0,118820.0,0.32278616]
[1752663614991,0.78102355,118830.0,118820.0,0.59963452]
[1752663615192,0.78102355,118830.0,118820.0,0.96043452]
[1752663615490,0.79022615,118830.0,118820.0,0.96043452]
[1752663616080,0.5169326,118830.0,118820.0,1.23398288]
[1752663616293,0.5073526,118830.0,118820.0,1.65229488]
[1752663616487,0.0161926,118830.0,118820.0,1.65229488]
[1752663616682,0.0161926,118830.0,118820.0,0.8316498]
[1752663616883,0.0161926,118830.0,118820.0,1.65229488]
[1752663618494,0.0161926,118830.0,118820.0,2.24925488]
[1752663618994,0.0161926,118830.0,118820.0,1.79316776]
[1752663619288,0.0161926,118830.0,118820.0,1.19620776]
[1752663619492,0.0161926,118830.0,118820.0,1.79316776]
[1752663619689,0.0161926,118830.0,118820.0,1.79324776]
[1752663619892,0.0161926,118830.0,118820.0,1.19620776]
[1752663620186,0.0161926,118830.0,118820.0,1.79328776]
[1752663620390,0.0161926,118830.0,118820.0,1.19620776]
[1752663620691,0.0161926,118830.0,118820.0,1.79324776]
[1752663622494,0.0161926,118830.0,118820.0,2.09094776]
[1752663623487,0.0161926,118830.0,118820.0,1.84046776]
[1752663624894,0.0161926,118830.0,118820.0,1.24390776]
[1752663625089,0.0161926,118830.0,118820.0,1.84030776]
[1752663625894,0.0161926,118830.0,118820.0,2.09030776]
[1752663626491,0.02,118850.0,118820.0,2.45486572]
[1752663626693,0.06616109,118850.0,118840.0,1.08991592]
[1752663626887,0.06616109,118850.0,118840.0,1.68595592]
[1752663627092,0.06616109,118850.0,118840.0,1.73292372]
[1752663627288,0.06616109,118850.0,118840.0,0.4077678]
[1752663627599,0.23499,118850.0,118840.0,1.36820576]
[1752663629900,0.23999,118850.0,118840.0,1.36920576]
[1752663631300,0.23999,118850.0,118840.0,1.43645962]
[1752663631500,0.235,118850.0,118840.0,1.43645962]
[1752663632103,0.235,118850.0,118840.0,1.44485793]
[1752663633690,0.23999,118850.0,118840.0,0.48441997]
[1752663633896,0.24224,118850.0,118840.0,1.08261793]
[1752663634395,0.24224,118850.0,118840.0,1.43501962]
[1752663634795,0.24224,118850.0,118840.0,1.07421962]
[1752663637004,0.24224,118850.0,118840.0,1.43501962]
[1752663637302,0.24224,118850.0,118840.0,0.11522166]
[1752663637500,0.24224,118850.0,118840.0,1.08215052]
[1752663637701,0.24224,118850.0,118840.0,0.48819052]
[1752663637902,0.24224,118850.0,118840.0,1.08171052]
[1752663638102,0.24224,118850.0,118840.0,0.48819052]
[1752663638401,0.24224,118850.0,118840.0,1.08171052]
[1752663639807,0.24224,118850.0,118840.0,0.48819052]
[1752663640007,0.24224,118850.0,118840.0,1.08135052]
[1752663641510,0.24224,118850.0,118840.0,1.44215052]
[1752663642306,0.23999,118850.0,118840.0,1.80670848]
[1752663642509,0.05999,118850.0,118840.0,1.80670848]
[1752663643407,0.05999,118850.0,118840.0,1.07759256]
[1752663643606,0.24239,118850.0,118840.0,1.44203052]
[1752663643806,0.24239,118850.0,118840.0,1.08123052]
[1752663644610,0.22239,118850.0,118840.0,1.08123052]
[1752663644814,0.22239,118850.0,118840.0,0.48819052]
[1752663645014,0.22239,118850.0,118840.0,1.08111052]
[1752663646311,0.28238355,118850.0,118840.0,1.08111052]
[1752663648314,0.28238355,118850.0,118840.0,0.71655256]
[1752663648616,0.28238355,118850.0,118840.0,1.08111052]
[1752663648913,0.28238355,118850.0,118840.0,1.08087052]
[1752663650113,0.22239,118850.0,118840.0,1.08087052]
[1752663654018,0.28238355,118850.0,118840.0,1.08087052]
[1752663657917,0.28238355,118850.0,118840.0,0.71631256]
[1752663658122,0.28238355,118850.0,118840.0,1.08087052]
[1752663658630,0.64694151,118850.0,118840.0,0.11522166]
[1752663658824,0.64694151,118850.0,118840.0,0.70742166]
[1752663660029,1.14694151,118850.0,118840.0,0.70742166]
[1752663660223,0.78238355,118850.0,118840.0,0.70742166]
[1752663660425,0.78238355,118850.0,118840.0,0.11522166]
[1752663660622,0.79857616,118850.0,118840.0,0.70794166]
[1752663661128,0.8069299,118850.0,118840.0,0.70794166]
[1752663662730,0.79857616,118850.0,118840.0,0.70794166]
[1752663665433,1.15937616,118850.0,118840.0,0.70794166]
[1752663665828,1.16776686,118850.0,118840.0,0.70794166]
[1752663666227,1.10777331,118850.0,118840.0,0.70794166]
[1752663667131,1.09938261,118850.0,118840.0,0.70794166]
[1752663667333,1.08319,118850.0,118840.0,0.70794166]
[1752663668033,1.50774151,118850.0,118840.0,0.0479678]
[1752663668232,1.50774151,118850.0,118840.0,0.6402478]
[1752663668233,1.52276334,118850.0,118840.0,0.6402478]
[1752663669535,1.53109386,118850.0,118840.0,0.6402478]
[1752663671231,2.63894982,118850.0,118810.0,0.00487]
[1752663671433,0.42082646,118820.0,118810.0,0.00737]
[1752663671730,0.19,118820.0,118810.0,1.32444796]
[1752663671936,0.01,118820.0,118810.0,1.31957796]
[1752663672136,0.005,118820.0,118810.0,1.31957796]
[1752663672335,0.02149532,118820.0,118810.0,1.48790596]
[1752663672529,0.01649532,118820.0,118810.0,1.49277596]
[1752663672730,0.01649532,118820.0,118810.0,1.33387761]
[1752663672929,0.01749532,118820.0,118810.0,1.33387761]
[1752663676635,0.01749532,118820.0,118810.0,0.96931965]
[1752663676836,0.02749532,118820.0,118810.0,1.33387761]
[1752663677036,0.59892328,118820.0,118810.0,0.60001]
[1752663677734,0.23436532,118820.0,118810.0,0.60001]
[1752663677938,0.23436532,118820.0,118810.0,0.00837]
[1752663678140,0.73436532,118820.0,118810.0,0.60049]
[1752663679038,1.09516532,118820.0,118810.0,0.00837]
[1752663679239,1.09516532,118820.0,118810.0,0.60065]
[1752663681537,1.45972328,118820.0,118810.0,0.001]
[1752663681841,1.51974974,118820.0,118810.0,0.59268]
[1752663682241,1.46801634,118820.0,118810.0,0.59268]
[1752663682435,1.45972328,118820.0,118810.0,0.59268]
[1752663682635,1.09516532,118820.0,118810.0,0.60001]
[1752663683342,1.45972328,118820.0,118810.0,0.59993]
[1752663683735,1.51974974,118820.0,118810.0,0.59993]
[1752663685138,1.15519178,118820.0,118810.0,0.59993]
[1752663685941,1.45972328,118820.0,118810.0,0.001]
[1752663686239,1.45520328,118820.0,118800.0,0.59636]
[1752663686441,0.73170796,118810.0,118800.0,0.59636]
[1752663686639,0.95820328,118810.0,118800.0,0.59636]
[1752663687234,0.95820328,118810.0,118800.0,0.00987]
[1752663687435,0.95820328,118810.0,118800.0,0.60095]
[1752663687741,1.45820328,118810.0,118800.0,0.60095]
[1752663688041,1.45820328,118810.0,118800.0,0.00987]
[1752663688241,1.09364532,118810.0,118800.0,0.37692796]
[1752663688436,0.72884532,118810.0,118800.0,0.96776796]
[1752663688636,0.72649532,118810.0,118800.0,1.69312592]
[1752663688835,0.72649532,118810.0,118800.0,1.32956796]
[1752663689240,0.22649532,118810.0,118800.0,1.32856796]
[1752663689536,0.22749532,118810.0,118800.0,1.32956796]
[1752663689742,0.04749532,118810.0,118800.0,1.69412592]
[1752663689939,0.19984532,118810.0,118800.0,0.60413]
[1752663690436,0.19984532,118810.0,118800.0,0.96868796]
[1752663690639,0.19749532,118810.0,118800.0,1.33324592]
[1752663691338,0.19749532,118810.0,118800.0,0.96868796]
[1752663691737,0.19984532,118810.0,118800.0,0.96936796]
[1752663693944,0.19984532,118810.0,118800.0,0.60481]
[1752663694140,0.19984532,118810.0,118800.0,0.96936796]
[1752663695949,0.56464532,118810.0,118800.0,0.60167]
[1752663696134,1.06464532,118810.0,118800.0,0.60167]
[1752663696334,1.12467178,118810.0,118800.0,0.60167]
[1752663696648,1.06464532,118810.0,118800.0,0.60167]
[1752663698048,1.06464532,118810.0,118800.0,0.01087]
[1752663698245,1.06464532,118810.0,118800.0,0.60143]
[1752663698546,1.61620325,118810.0,118800.0,0.006]
[1752663698741,1.61620325,118810.0,118800.0,0.59648]
[1752663699046,1.25164529,118810.0,118800.0,0.59636]
[1752663700550,1.61620325,118810.0,118800.0,0.59636]
[1752663700841,1.08330129,118810.0,118800.0,0.59636]
[1752663701042,1.08330129,118810.0,118800.0,0.6035]
[1752663701347,1.14332775,118810.0,118800.0,0.6035]
[1752663701547,1.13932775,118810.0,118800.0,0.96805796]
[1752663702048,1.08330129,118810.0,118800.0,0.96805796]
[1752663702246,1.14332775,118810.0,118800.0,0.96805796]
[1752663702547,0.78252775,118810.0,118800.0,0.96805796]
[1752663702749,0.72250129,118810.0,118800.0,0.96805796]
[1752663703141,0.71850129,118810.0,118800.0,0.96805796]
[1752663703337,0.77852775,118810.0,118800.0,0.96805796]
[1752663703743,0.71850129,118810.0,118800.0,0.96805796]
[1752663704346,0.77852775,118810.0,118800.0,0.96805796]
[1752663705851,0.77617775,118810.0,118800.0,0.96805796]
[1752663706153,0.77617775,118810.0,118800.0,1.32885796]
[1752663706450,0.71615129,118810.0,118800.0,1.69341592]
[1752663706951,0.71615129,118810.0,118800.0,1.32885796]
[1752663707146,0.27617775,118810.0,118800.0,1.69341592]
[1752663707344,0.27617775,118810.0,118800.0,1.32885796]
[1752663707653,0.09617775,118810.0,118800.0,1.32885796]
[1752663707953,0.03615129,118810.0,118800.0,0.9643]
[1752663708153,0.03615129,118810.0,118800.0,1.69341592]
[1752663708546,0.09617775,118810.0,118800.0,1.69341592]
[1752663709650,0.09617775,118810.0,118800.0,1.32885796]
[1752663710449,0.09617775,118810.0,118800.0,0.73849796]
[1752663710657,0.09617775,118810.0,118800.0,1.69189592]
[1752663710858,0.09844775,118810.0,118800.0,0.73849796]
[1752663711052,0.27844775,118810.0,118800.0,1.32721796]
[1752663711254,0.27844775,118810.0,118800.0,0.73849796]
[1752663711454,0.27844775,118810.0,118800.0,1.32717796]
[1752663712058,0.28244775,118810.0,118800.0,1.32717796]
[1752663713753,0.27844775,118810.0,118800.0,1.32717796]
[1752663715556,0.28244775,118810.0,118800.0,0.3668]
[1752663715862,1.11612325,118810.0,118800.0,0.006]
[1752663716057,0.75156529,118810.0,118800.0,0.006]
[1752663716262,1.31159045,118810.0,118800.0,0.01084]
[1752663716557,1.14324645,118810.0,118800.0,0.01084]
[1752663716964,1.15823667,118810.0,118800.0,0.01084]
[1752663717164,1.15823667,118810.0,118800.0,0.59888]
[1752663717667,1.15823667,118810.0,118800.0,0.53067074]
[1752663717861,0.79743667,118810.0,118800.0,0.8975287]
[1752663718365,0.78246829,118810.0,118800.0,0.8975287]
[1752663719863,0.78246829,118810.0,118800.0,0.9023687]
[1752663721066,0.71842129,118810.0,118800.0,1.26692666]
[1752663721265,0.71842129,118810.0,118800.0,0.9023687]
[1752663721668,0.71842129,118810.0,118800.0,0.37169796]
[1752663721861,0.72293129,118810.0,118800.0,0.95929796]
[1752663722062,0.22293129,118810.0,118800.0,0.95929796]
[1752663725371,0.21842129,118810.0,118800.0,0.95929796]
[1752663725764,0.22293129,118810.0,118800.0,0.95929796]
[1752663726671,0.22293129,118810.0,118800.0,0.95857796]
[1752663728570,0.22297129,118810.0,118800.0,0.95857796]
[1752663733369,0.21846129,118810.0,118800.0,1.68393592]
[1752663733675,0.21619129,118810.0,118800.0,1.68393592]
[1752663734677,0.21619129,118810.0,118800.0,1.31937796]
[1752663735173,0.21619129,118810.0,118800.0,0.95857796]
[1752663735778,0.21619129,118810.0,118800.0,1.68393592]
[1752663737286,0.21619129,118810.0,118800.0,1.31937796]
[1752663737479,0.01753532,118810.0,118800.0,1.68393592]
[1752663749391,0.01753532,118810.0,118800.0,1.68081592]
[1752663752900,0.01753532,118810.0,118800.0,1.31565796]
[1752663752901,0.05988532,118810.0,118800.0,1.31565796]
[1752663753100,0.06485532,118810.0,118800.0,1.31565796]
[1752663754100,0.05753532,118810.0,118800.0,1.09705592]
[1752663754300,0.05753532,118810.0,118800.0,1.68021592]
[1752663755504,0.05753532,118810.0,118800.0,1.31565796]
[1752663756499,0.05753532,118810.0,118800.0,1.68021592]
[1752663757502,0.05753532,118810.0,118800.0,1.09705592]
[1752663757802,0.05753532,118810.0,118800.0,1.31525796]
[1752663758003,0.05753532,118810.0,118800.0,1.67981592]
[1752663758503,0.06480532,118810.0,118800.0,0.36794]
[1752663758698,0.06480532,118810.0,118800.0,1.31509796]
[1752663759404,0.06480532,118810.0,118800.0,0.73249796]
[1752663759593,0.06480532,118810.0,118800.0,1.31497796]
[1752663759797,0.06480532,118810.0,118800.0,0.37169796]
[1752663759993,0.06480532,118810.0,118790.0,1.52997]
[1752663760199,0.79016328,118810.0,118800.0,0.58256]
[1752663760498,0.85021028,118810.0,118800.0,0.58256]
[1752663760703,0.48565232,118810.0,118800.0,0.58256]
[1752663760905,0.98565232,118810.0,118800.0,0.58256]
[1752663761102,0.0074,118800.0,118790.0,1.17391]
[1752663761298,0.0074,118800.0,118790.0,1.75627]
[1752663761299,0.57469532,118800.0,118790.0,1.75627]
[1752663762301,0.63474232,118800.0,118790.0,1.75627]
[1752663762505,0.63574232,118800.0,118790.0,1.75927]
[1752663763200,1.13574232,118800.0,118790.0,1.17197]
[1752663763406,1.50030028,118800.0,118790.0,1.75445]
[1752663763605,1.13574232,118800.0,118790.0,1.75445]
[1752663764307,1.07569532,118800.0,118790.0,1.75449]
[1752663764509,1.07569532,118800.0,118790.0,1.75923]
[1752663764807,1.13574232,118800.0,118790.0,1.75923]
[1752663765007,1.50030028,118800.0,118790.0,1.17197]
[1752663765304,1.07569532,118800.0,118790.0,1.75449]
[1752663765609,1.85861328,118800.0,118780.0,0.0002]
[1752663765809,0.73275796,118790.0,118780.0,0.0002]
[1752663766007,0.57469532,118790.0,118780.0,0.58252]
[1752663766800,0.57469532,118790.0,118780.0,0.58726]
[1752663767310,0.57469532,118790.0,118780.0,0.95428796]
[1752663767608,1.07469532,118790.0,118780.0,0.95428796]
[1752663767807,1.07469532,118790.0,118780.0,0.58973]
[1752663768701,1.07469532,118790.0,118780.0,0.58499]
[1752663769213,0.0074,118780.0,118770.0,0.0002]
[1752663769409,0.00492,118770.0,118750.0,0.58256]
[1752663769708,0.3682,118760.0,118750.0,0.58256]
[1752663769909,0.00248,118740.0,118730.0,0.36801]
[1752663770098,0.1174,118740.0,118730.0,1.31512796]
[1752663770304,0.1174,118740.0,118730.0,0.73256796]
[1752663770609,0.11248,118740.0,118730.0,1.31512796]
[1752663770805,0.11,118740.0,118730.0,1.31512796]
[1752663771013,0.01900522,118750.0,118730.0,1.31038796]
[1752663771205,0.10148522,118750.0,118740.0,0.36929796]
[1752663771510,0.10640522,118750.0,118740.0,0.95432796]
[1752663771910,0.10640522,118750.0,118740.0,0.96256821]
[1752663772510,0.10740522,118750.0,118740.0,0.96756821]
[1752663773602,0.60740522,118750.0,118740.0,0.96756821]
[1752663773805,0.62375487,118750.0,118740.0,0.96756821]
[1752663774007,0.62375487,118750.0,118740.0,0.38500821]
[1752663774206,0.62375487,118750.0,118740.0,0.37676796]
[1752663774511,0.62375487,118750.0,118740.0,0.95940796]
[1752663775306,0.62375487,118750.0,118740.0,0.96763858]
[1752663777208,0.62375487,118750.0,118740.0,0.96767858]
[1752663778712,0.62375487,118750.0,118740.0,0.38499858]
[1752663779109,0.62375487,118750.0,118740.0,0.96767858]
[1752663779514,0.62375487,118750.0,118740.0,0.01221]
[1752663779808,0.62375487,118750.0,118740.0,0.95948796]
[1752663781013,0.62375487,118750.0,118740.0,0.59493]
[1752663781214,0.62375487,118750.0,118740.0,0.95948796]
[1752663781912,0.62375487,118750.0,118740.0,0.59493]
[1752663782112,0.62375487,118750.0,118740.0,0.95948796]
[1752663782709,0.61883487,118750.0,118740.0,0.95948796]
[1752663783617,0.61635487,118750.0,118740.0,0.95573]
[1752663783818,0.61635487,118750.0,118740.0,1.32028796]
[1752663784214,0.59734965,118750.0,118740.0,1.32028796]
[1752663784417,0.52734965,118750.0,118740.0,1.32028796]
[1752663784613,0.02734965,118750.0,118740.0,1.32028796]
[1752663784814,0.01734965,118750.0,118740.0,1.32028796]
[1752663785319,0.03734965,118750.0,118740.0,1.32028796]
[1752663785915,0.03734965,118750.0,118740.0,0.73756796]
[1752663786120,0.03734965,118750.0,118740.0,1.32032796]
[1752663789117,0.04463965,118750.0,118740.0,0.73756796]
[1752663789323,0.04463965,118750.0,118740.0,1.32032796]
[1752663793728,0.04463965,118750.0,118740.0,0.73756796]
[1752663793923,0.22463965,118750.0,118740.0,0.37676796]
[1752663794124,0.22463965,118750.0,118740.0,0.95952796]
[1752663797029,0.72463965,118750.0,118740.0,0.95952796]
[1752663797633,0.69578079,118750.0,118740.0,0.01221]
[1752663797829,0.69578079,118750.0,118740.0,0.95952796]
[1752663798033,0.69578079,118750.0,118740.0,0.59497]
[1752663798432,0.75582779,118750.0,118740.0,0.59497]
[1752663799129,0.75582779,118750.0,118740.0,0.01221]
[1752663799334,0.75582779,118750.0,118740.0,0.59497]
[1752663800133,0.75737779,118750.0,118740.0,0.59497]
[1752663800934,0.75582779,118750.0,118740.0,0.59497]
[1752663801432,0.75582779,118750.0,118740.0,0.01221]
[1752663801633,0.75582779,118750.0,118740.0,0.59497]
[1752663801841,0.75737779,118750.0,118740.0,0.01221]
[1752663802031,0.75737779,118750.0,118740.0,0.5925]
[1752663802232,0.75737779,118750.0,118740.0,0.59495]
[1752663802435,0.75582779,118750.0,118740.0,0.59495]
[1752663802835,0.69578079,118750.0,118740.0,0.59495]
[1752663803233,0.69578079,118750.0,118740.0,0.95950796]
[1752663804136,0.75582779,118750.0,118740.0,0.95950796]
[1752663804438,0.69335079,118750.0,118740.0,0.95950796]
[1752663805940,0.19335079,118750.0,118740.0,0.95950796]
[1752663807334,0.17463965,118750.0,118740.0,1.32030796]
[1752663808341,0.17706965,118750.0,118740.0,1.32030796]
[1752663808545,0.17706965,118750.0,118740.0,0.37299]
[1752663808743,0.17706965,118750.0,118740.0,0.59491]
[1752663809042,0.67861965,118750.0,118740.0,0.59491]
[1752663814143,0.67861965,118750.0,118740.0,0.01219]
[1752663814344,0.67861965,118750.0,118740.0,0.59491]
[1752663815443,0.67861965,118750.0,118740.0,0.59487]
[1752663815743,0.67861965,118750.0,118740.0,0.01219]
[1752663816045,0.67861965,118750.0,118740.0,0.59487]
[1752663816944,1.04317761,118750.0,118740.0,0.01219]
[1752663817141,1.04317761,118750.0,118740.0,0.005]
[1752663817344,1.04317761,118750.0,118730.0,0.361]
[1752663817345,0.00398,118740.0,118730.0,0.0002]
[1752663817646,0.94399094,118740.0,118720.0,0.58748]
[1752663817847,0.00395,118730.0,118720.0,0.58978]
[1752663818049,0.20015298,118730.0,118720.0,0.58958]
[1752663818249,0.21858339,118730.0,118720.0,0.0069]
[1752663818445,0.21858339,118730.0,118720.0,0.58958]
[1752663818747,0.71463339,118730.0,118720.0,0.9625795]
[1752663819046,0.71463339,118730.0,118720.0,0.95413796]
[1752663819348,0.71903339,118730.0,118720.0,0.96013796]
[1752663819548,1.08359135,118730.0,118720.0,0.0129]
[1752663819749,0.72058339,118730.0,118720.0,0.0129]
[1752663820650,0.72058339,118730.0,118720.0,0.0106]
[1752663821052,0.72058339,118730.0,118720.0,0.0129]
[1752663821448,1.08514135,118730.0,118720.0,0.0106]
[1752663821747,1.14518835,118730.0,118720.0,0.0106]
[1752663821950,0.77908039,118730.0,118720.0,0.0129]
[1752663822144,0.77668039,118730.0,118720.0,0.37745796]
[1752663822348,0.71903339,118730.0,118720.0,0.0129]
[1752663822846,0.71903339,118730.0,118720.0,0.37745796]
[1752663823446,0.71663339,118730.0,118720.0,0.37745796]
[1752663826751,0.71663339,118730.0,118720.0,0.73825796]
[1752663827746,0.21663339,118730.0,118720.0,0.73825796]
[1752663829449,0.21663339,118730.0,118720.0,1.10281592]
[1752663829848,0.21663339,118730.0,118720.0,0.73825796]
[1752663830342,0.03663339,118730.0,118720.0,1.10281592]
[1752663830547,0.01820298,118730.0,118720.0,1.10281592]
[1752663831149,0.03820298,118730.0,118720.0,1.10281592]
[1752663831452,0.01820298,118730.0,118720.0,1.10281592]
[1752663844058,0.002,118730.0,118720.0,1.10281592]
[1752663845057,0.01839158,118730.0,118720.0,1.10281592]
[1752663847664,0.01839158,118730.0,118720.0,1.32073796]
[1752663848167,0.01839158,118730.0,118720.0,1.68153796]
[1752663850166,0.01839158,118730.0,118720.0,2.04609592]
[1752663850868,0.01839158,118730.0,118720.0,1.68153796]
[1752663853167,0.01839158,118730.0,118720.0,2.04609592]
[1752663854668,0.01839158,118730.0,118720.0,1.68153796]
[1752663854970,0.01839158,118730.0,118720.0,2.04609592]
[1752663871081,0.01839158,118730.0,118720.0,1.32449592]
[1752663871285,0.01839158,118730.0,118720.0,2.04609592]
[1752663874388,0.01839158,118730.0,118720.0,1.32449592]
[1752663874587,0.01839158,118730.0,118720.0,2.04609592]
[1752663874986,0.01839158,118730.0,118720.0,1.46361592]
[1752663875187,0.01839158,118730.0,118720.0,2.04577592]
[1752663875387,0.01839158,118730.0,118720.0,2.04573592]
[1752663875688,0.01839158,118730.0,118720.0,1.46361592]
[1752663875887,0.01839158,118730.0,118720.0,2.04573592]
[1752663877196,2.158e-05,118730.0,118720.0,2.04573592]
[1752663877486,0.15495878,118760.0,118750.0,0.00476]
[1752663877687,0.21,118760.0,118750.0,1.31454796]
[1752663877893,0.27011391,118760.0,118750.0,1.31454796]
[1752663878789,0.27011391,118760.0,118750.0,1.32312696]
[1752663879490,0.27111391,118760.0,118750.0,1.32612696]
[1752663881092,0.211,118760.0,118750.0,1.32612696]
[1752663886995,0.211,118760.0,118750.0,1.50925012]
[1752663889395,0.22764354,118760.0,118750.0,1.50925012]
[1752663889695,0.22994354,118760.0,118750.0,1.50925012]
[1752663891799,0.22994354,118760.0,118750.0,0.961569]
[1752663891996,0.22994354,118760.0,118750.0,1.50925012]
[1752663892401,0.22764354,118760.0,118750.0,1.50925012]
[1752663904308,0.06764354,118760.0,118750.0,1.50925012]
[1752663904607,0.06764354,118760.0,118750.0,1.78309068]
[1752663904803,0.02247784,118760.0,118750.0,1.78309068]
[1752663905001,0.01902784,118760.0,118750.0,1.78309068]
[1752663907409,0.01902784,118760.0,118750.0,1.95150668]
[1752663907711,0.00485,118790.0,118750.0,2.47058724]
[1752663907911,0.19485,118790.0,118780.0,0.90848112]
[1752663908113,0.19485,118790.0,118780.0,1.48996112]
[1752663909513,0.19885,118790.0,118780.0,1.49096112]
[1752663910314,0.21751017,118790.0,118780.0,1.49096112]
[1752663910710,0.21451017,118790.0,118780.0,1.49196112]
[1752663910906,0.21451017,118790.0,118780.0,1.30918058]
[1752663911113,0.04451017,118790.0,118780.0,1.30918058]
[1752663911610,0.03966017,118790.0,118780.0,1.30918058]
[1752663912211,0.01966017,118790.0,118780.0,1.30918058]
[1752663912412,0.001,118790.0,118780.0,1.30918058]
[1752663912609,0.001,118790.0,118780.0,2.47346058]
[1752663912808,0.001,118790.0,118780.0,2.54020239]
[1752663914908,0.001,118790.0,118780.0,2.90510297]
[1752663915311,0.001,118790.0,118780.0,2.54020239]
[1752663915614,0.001,118790.0,118780.0,2.90510297]
[1752663916015,0.001,118790.0,118780.0,2.54020239]
[1752663916418,0.001,118790.0,118780.0,2.90510297]